fUSD/lending_fUSD_20260510
["ID","MTS","AMOUNT","RATE_DAILY","PERIOD"]
[421950225,1778364649000,-152.0,0.00041674,14]
[421950230,1778364649000,-151.0,0.00041674,14]
[421950308,1778364650000,-3000.0,0.00041767,120]
[421950307,1778364650000,-3000.0,0.00041767,120]
[421950309,1778364650000,-3000.0,0.00041767,120]
[421950306,1778364650000,-3000.0,0.00041767,120]
[421950300,1778364650000,-3000.0,0.00041767,120]
[421950299,1778364650000,-3000.0,0.00041767,120]
[421950301,1778364650000,-3000.0,0.00041767,120]
[421950302,1778364650000,-3000.0,0.00041767,120]
[421950312,1778364650000,-3000.0,0.00041767,120]
[421950304,1778364650000,-3000.0,0.00041767,120]
[421950305,1778364650000,-3000.0,0.00041767,120]
[421950316,1778364650000,-3000.0,0.00041767,120]
[421950318,1778364650000,-3000.0,0.00041767,120]
[421950313,1778364650000,-3000.0,0.00041767,120]
[421950310,1778364650000,-3000.0,0.00041767,120]
[421950314,1778364650000,-3000.0,0.00041767,120]
[421950315,1778364650000,-3000.0,0.00041767,120]
[421950317,1778364650000,-3000.0,0.00041767,120]
[421950319,1778364650000,-3000.0,0.00041767,120]
[421950320,1778364650000,-3000.0,0.00041767,120]
[421950330,1778364650000,-3000.0,0.00041767,120]
[421950329,1778364650000,-3000.0,0.00041767,120]
[421950323,1778364650000,-3000.0,0.00041767,120]
[421950303,1778364650000,-3000.0,0.00041767,120]
[421950311,1778364650000,-3000.0,0.00041767,120]
[421950298,1778364650000,-3000.0,0.00041767,120]
[421950281,1778364650000,-500.0,0.00041766,30]
[421950291,1778364650000,-3000.0,0.00041767,120]
[421950278,1778364650000,-152.0,0.00041766,120]
[421950277,1778364650000,-156.0,0.00041766,120]
[421950275,1778364650000,-161.0,0.00041766,120]
[421950274,1778364650000,-165.06492088,0.00041766,30]
[421950272,1778364650000,-30000.0,0.00041765,2]
[421950273,1778364650000,-500.0,0.00041765,30]
[421950276,1778364650000,-156.0,0.00041766,120]
[421950271,1778364650000,-151.0,0.00041764,14]
[421950280,1778364650000,-494.81764384,0.00041766,120]
[421950290,1778364650000,-3000.0,0.00041767,120]
[421950283,1778364650000,-3000.0,0.00041767,120]
[421950322,1778364650000,-3000.0,0.00041767,120]
[421950279,1778364650000,-1825.72542824,0.00041766,120]
[421950287,1778364650000,-3000.0,0.00041767,120]
[421950282,1778364650000,-500.0,0.00041766,30]
[421950285,1778364650000,-3000.0,0.00041767,120]
[421950284,1778364650000,-3000.0,0.00041767,120]
[421950288,1778364650000,-3000.0,0.00041767,120]
[421950289,1778364650000,-3000.0,0.00041767,120]
[421950286,1778364650000,-3000.0,0.00041767,120]
[421950297,1778364650000,-3000.0,0.00041767,120]
[421950296,1778364650000,-3000.0,0.00041767,120]
[421950295,1778364650000,-3000.0,0.00041767,120]
[421950293,1778364650000,-3000.0,0.00041767,120]
[421950292,1778364650000,-3000.0,0.00041767,120]
[421950294,1778364650000,-3000.0,0.00041767,120]
[421950321,1778364650000,-3000.0,0.00041767,120]
[421950375,1778364650000,-6508.406347,0.00041767,14]
[421950324,1778364650000,-3000.0,0.00041767,120]
[421950355,1778364650000,-151.0,0.00041767,28]
[421950359,1778364650000,-151.0,0.00041767,120]
[421950364,1778364650000,-151.0,0.00041767,120]
[421950360,1778364650000,-299.308539,0.00041767,120]
[421950358,1778364650000,-151.0,0.00041767,120]
[421950365,1778364650000,-170.310563,0.00041767,120]
[421950363,1778364650000,-299.308539,0.00041767,120]
[421950361,1778364650000,-299.308539,0.00041767,120]
[421950362,1778364650000,-299.308539,0.00041767,120]
[421950366,1778364650000,-151.0,0.00041767,7]
[421950377,1778364650000,-2124.115976,0.00041767,120]
[421950367,1778364650000,-151.0,0.00041767,7]
[421950373,1778364650000,-6508.40635,0.00041767,14]
[421950368,1778364650000,-151.0,0.00041767,120]
[421950372,1778364650000,-151.0,0.00041767,120]
[421950376,1778364650000,-2124.115976,0.00041767,120]
[421950374,1778364650000,-2124.115976,0.00041767,120]
[421950370,1778364650000,-151.0,0.00041767,120]
[421950369,1778364650000,-6508.40635,0.00041767,14]
[421950381,1778364650000,-246.14849,0.00041767,7]
[421950380,1778364650000,-246.14849,0.00041767,7]
[421950378,1778364650000,-2124.115976,0.00041767,120]
[421950382,1778364650000,-246.14849,0.00041767,7]
[421950379,1778364650000,-151.0,0.00041767,120]
[421950328,1778364650000,-3000.0,0.00041767,120]
[421950354,1778364650000,-151.0,0.00041767,28]
[421950356,1778364650000,-151.0,0.00041767,28]
[421950371,1778364650000,-6508.40635,0.00041767,14]
[421950346,1778364650000,-151.0,0.00041767,120]
[421950357,1778364650000,-229.045128,0.00041767,28]
[421950325,1778364650000,-3000.0,0.00041767,120]
[421950327,1778364650000,-3000.0,0.00041767,120]
[421950326,1778364650000,-3000.0,0.00041767,120]
[421950331,1778364650000,-3000.0,0.00041767,120]
[421950332,1778364650000,-2941.1501365,0.00041767,120]
[421950334,1778364650000,-151.0,0.00041767,120]
[421950339,1778364650000,-151.0,0.00041767,120]
[421950333,1778364650000,-151.0,0.00041767,120]
[421950337,1778364650000,-249.133894,0.00041767,120]
[421950335,1778364650000,-151.0,0.00041767,120]
[421950341,1778364650000,-151.0,0.00041767,120]
[421950336,1778364650000,-151.0,0.00041767,120]
[421950345,1778364650000,-151.0,0.00041767,120]
[421950338,1778364650000,-233.701847,0.00041767,120]
[421950344,1778364650000,-151.0,0.00041767,120]
[421950352,1778364650000,-151.0,0.00041767,120]
[421950353,1778364650000,-158.657086,0.00041767,120]
[421950342,1778364650000,-151.0,0.00041767,120]
[421950343,1778364650000,-151.0,0.00041767,120]
[421950351,1778364650000,-151.0,0.00041767,120]
[421950348,1778364650000,-151.0,0.00041767,120]
[421950350,1778364650000,-151.0,0.00041767,120]
[421950349,1778364650000,-151.0,0.00041767,120]
[421950340,1778364650000,-151.0,0.00041767,120]
[421950347,1778364650000,-151.0,0.00041767,120]
[421950403,1778364651000,-1000000.0,0.00041768,30]
[421950396,1778364651000,-1000000.0,0.00041768,30]
[421950414,1778364651000,-151.0,0.000415,120]
[421950404,1778364651000,-829807.13223116,0.00041768,30]
[421950400,1778364651000,-1000000.0,0.00041768,30]
[421950401,1778364651000,-1000000.0,0.00041768,30]
[421950405,1778364651000,-4191.29776952,0.00011352,2]
[421950411,1778364651000,-992.525097,0.00041096,120]
[421950406,1778364651000,-37062.94690142,0.00011352,2]
[421950410,1778364651000,-188.920213,0.00041096,120]
[421950408,1778364651000,-188.920213,0.00041096,120]
[421950409,1778364651000,-992.525097,0.00041096,120]
[421950399,1778364651000,-1000000.0,0.00041768,30]
[421950407,1778364651000,-992.525097,0.00041096,120]
[421950397,1778364651000,-1000000.0,0.00041768,30]
[421950390,1778364651000,-241.29213992,0.00041768,120]
[421950394,1778364651000,-51271.51279137,0.00041768,30]
[421950393,1778364651000,-1934.44111616,0.00041768,120]
[421950395,1778364651000,-599.706,0.00041768,120]
[421950391,1778364651000,-726107.11243183,0.00041768,90]
[421950402,1778364651000,-1000000.0,0.00041768,30]
[421950392,1778364651000,-623.74022846,0.00041768,120]
[421950387,1778364651000,-716.0,0.00041768,120]
[421950385,1778364651000,-154.45974034,0.00041767,3]
[421950383,1778364651000,-246.148494,0.00041767,7]
[421950388,1778364651000,-162.0,0.00041768,120]
[421950386,1778364651000,-360.0,0.00041768,120]
[421950384,1778364651000,-175.56,0.00041767,10]
[421950389,1778364651000,-155.0,0.00041768,120]
[421950412,1778364651000,-992.525097,0.00041096,120]
[421950398,1778364651000,-1000000.0,0.00041768,30]
[421950415,1778364651000,-992.525097,0.000415,120]
[421950416,1778364651000,-188.920213,0.000415,120]
[421950413,1778364651000,-188.920213,0.00041096,120]
[421950446,1778364651000,-23543.33510005,0.00011489,2]
[421950445,1778364651000,-235854.40978386,0.00041768,30]
[421950443,1778364651000,-992.525097,0.000415,120]
[421950442,1778364651000,-992.525097,0.00041096,120]
[421950441,1778364651000,-188.920213,0.00041096,120]
[421950440,1778364651000,-992.525097,0.00041096,120]
[421950444,1778364651000,-188.920213,0.000415,120]
[421950439,1778364651000,-2084.608854,0.00041096,120]
[421950438,1778364651000,-188.920213,0.00041096,120]
[421950435,1778364651000,-992.525097,0.00041096,120]
[421950437,1778364651000,-992.525097,0.00041096,120]
[421950430,1778364651000,-3627.0,0.00031597,2]
[421950429,1778364651000,-3627.0,0.00028597,2]
[421950431,1778364651000,-3626.0,0.00034597,2]
[421950436,1778364651000,-188.920213,0.00041096,120]
[421950428,1778364651000,-156.9,0.00026257,2]
[421950419,1778364651000,-342.26322073,0.00041768,30]
[421950447,1778364651000,-2500.0,0.00011489,2]
[421950421,1778364651000,-25733.06025874,0.00041768,30]
[421950427,1778364651000,-3627.0,0.00025597,2]
[421950418,1778364651000,-288391.58369202,0.00041768,30]
[421950417,1778364651000,-170192.86776884,0.00041768,30]
[421950422,1778364651000,-2529.30522254,0.00041768,30]
[421950420,1778364651000,-4035.98163635,0.00041768,30]
[421950434,1778364651000,-188.920213,0.00041096,120]
[421950425,1778364651000,-346.4546635,0.00012443,2]
[421950432,1778364651000,-188.920213,0.00041096,120]
[421950433,1778364651000,-992.525097,0.00041096,120]
[421950426,1778364651000,-9861.85825829,0.00012443,2]
[421950424,1778364651000,-607.05961231,0.00041768,30]
[421950423,1778364651000,-1130.23678436,0.00041768,30]
[421950448,1778364652000,776.0,0.00027397,120]
[421950449,1778364709000,-850.25264385,0.00010027,2]
[421950450,1778364711000,-171.31269531,0.00010027,2]
[421950453,1778365035000,322.01,0.00025929,120]
[421950454,1778365111000,167.5568005,9.927e-05,2]
[421950455,1778365122000,-2305.40466084,0.00010027,2]
[421950458,1778365176000,-13.90576741,0.00010278,2]
[421950456,1778365176000,-163.90576741,0.00010027,2]
[421950457,1778365176000,-150.0,0.00010127,2]
[421950460,1778365176000,-163.90576741,0.00010278,2]
[421950459,1778365176000,-163.90576741,0.00010278,2]
[421950461,1778365176000,-163.90576741,0.00010278,2]
[421950463,1778365404000,-2821.34693036,0.00010278,2]
[421950464,1778365457000,-3326.97,0.00010529,2]
[421950468,1778365458000,-1526.97,0.00010779,2]
[421950466,1778365458000,-1200.0,0.00010778,2]
[421950467,1778365458000,-300.0,0.00010778,2]
[421950465,1778365458000,-300.0,0.00010778,2]
[421950470,1778365458000,-1526.97,0.0001103,2]
[421950471,1778365458000,-1800.0,0.0001103,2]
[421950474,1778365458000,-924.34,0.00011856,2]
[421950473,1778365458000,-420.0,0.00011847,2]
[421950472,1778365458000,-182.63,0.00011352,2]
[421950475,1778365458000,-294.66,0.00011856,2]
[421950469,1778365458000,-1800.0,0.00010779,2]
[421950476,1778365459000,-3032.31,0.00012496,2]
[421950477,1778365474000,-6198.16,0.00012496,2]
[421950479,1778365529000,-151.0,0.00012639,2]
[421950478,1778365529000,-151.0,0.00012639,2]
[421950481,1778365530000,-151.0,0.00012638,2]
[421950480,1778365530000,-151.0,0.00012639,2]
[421950482,1778365531000,-149.0,0.00012638,2]
[421950483,1778365531000,-2.0,0.00012639,2]
[421950485,1778365546000,-149.0,0.00012639,2]
[421950486,1778365600000,-151.0,0.00012639,2]
[421950491,1778365601000,-6.85574626,0.00012973,2]
[421950490,1778365601000,-144.14425374,0.00012639,2]
[421950489,1778365601000,-151.0,0.00012639,2]
[421950488,1778365601000,-151.0,0.00012639,2]
[421950487,1778365601000,-151.0,0.00012639,2]
[421950493,1778365604000,-143.42977163,0.00013521,2]
[421950492,1778365604000,-493.14425374,0.00012973,2]
[421950500,1778365634000,-500.0,0.00013698,2]
[421950496,1778365634000,-507.78700204,0.00013698,2]
[421950497,1778365634000,-500.0,0.00013698,2]
[421950495,1778365634000,-150.0,0.00013697,2]
[421950499,1778365634000,-500.0,0.00013698,2]
[421950498,1778365634000,-500.0,0.00013698,2]
[421950502,1778365634000,-500.0,0.00013698,2]
[421950494,1778365634000,-154.01481834,0.00013599,2]
[421950501,1778365634000,-500.0,0.00013698,2]
[421950509,1778365634000,-299.75724965,0.00013698,2]
[421950505,1778365634000,-500.0,0.00013698,2]
[421950506,1778365634000,-500.0,0.00013698,2]
[421950508,1778365634000,-500.0,0.00013698,2]
[421950504,1778365634000,-500.0,0.00013698,2]
[421950507,1778365634000,-500.0,0.00013698,2]
[421950503,1778365634000,-500.0,0.00013698,2]
[421950511,1778365769000,-1096.123688,0.00011941,2]
[421950510,1778365769000,-152.0,0.00011417,2]
[421950512,1778365786000,-10000.01,0.00011941,2]
[421950515,1778365831000,-102.11590291,0.0001194,2]
[421950514,1778365831000,-300.0,0.0001194,2]
[421950516,1778365831000,-47.88409709,0.0001194,2]
[421950517,1778365831000,-1200.0,0.0001194,2]
[421950520,1778365831000,-255.0,0.00013015,2]
[421950522,1778365831000,-200.24275035,0.00013698,2]
[421950521,1778365831000,-420.0,0.00013108,2]
[421950523,1778365831000,-438.61,0.00013698,2]
[421950519,1778365831000,-171271.7064189,0.00011941,2]
[421950525,1778365831000,-593.60631339,0.00013698,2]
[421950524,1778365831000,-500.0,0.00013698,2]
[421950526,1778365831000,-500.0,0.00013698,2]
[421950528,1778365831000,-500.0,0.00013698,2]
[421950527,1778365831000,-624.41715084,0.00013698,2]
[421950533,1778365831000,-1000.0,0.00013699,2]
[421950531,1778365831000,-336.54,0.00013699,2]
[421950529,1778365831000,-501.69944493,0.00013698,2]
[421950518,1778365831000,-35646.8657511,0.00011941,2]
[421950578,1778365832000,-500.0,0.00016079,2]
[421950574,1778365832000,-500.0,0.00016079,2]
[421950569,1778365832000,-500.0,0.00016079,2]
[421950567,1778365832000,-500.0,0.00016079,2]
[421950566,1778365832000,-500.0,0.00016079,2]
[421950576,1778365832000,-500.0,0.00016079,2]
[421950564,1778365832000,-500.0,0.00016079,2]
[421950572,1778365832000,-500.0,0.00016079,2]
[421950565,1778365832000,-500.0,0.00016079,2]
[421950570,1778365832000,-500.0,0.00016079,2]
[421950571,1778365832000,-500.0,0.00016079,2]
[421950568,1778365832000,-500.0,0.00016079,2]
[421950577,1778365832000,-500.0,0.00016079,2]
[421950587,1778365832000,-159.37792149,0.00016079,2]
[421950581,1778365832000,-500.0,0.00016079,2]
[421950580,1778365832000,-500.0,0.00016079,2]
[421950582,1778365832000,-500.0,0.00016079,2]
[421950583,1778365832000,-500.0,0.00016079,2]
[421950575,1778365832000,-500.0,0.00016079,2]
[421950584,1778365832000,-500.0,0.00016079,2]
[421950585,1778365832000,-500.0,0.00016079,2]
[421950592,1778365832000,-500.0,0.00016079,2]
[421950591,1778365832000,-500.0,0.00016079,2]
[421950597,1778365832000,-500.0,0.00016079,2]
[421950590,1778365832000,-500.0,0.00016079,2]
[421950563,1778365832000,-500.0,0.00016079,2]
[421950579,1778365832000,-500.0,0.00016079,2]
[421950573,1778365832000,-500.0,0.00016079,2]
[421950542,1778365832000,-187.94100398,0.00014974,21]
[421950562,1778365832000,-267.3826074,0.00016079,2]
[421950535,1778365832000,-300.0,0.00013903,2]
[421950537,1778365832000,-300.0,0.00013903,2]
[421950534,1778365832000,-300.0,0.00013903,2]
[421950536,1778365832000,-300.0,0.00013903,2]
[421950539,1778365832000,-433.0,0.00014185,2]
[421950549,1778365832000,-516.98,0.00016,2]
[421950545,1778365832000,-250.0,0.00015086,2]
[421950541,1778365832000,-516.86033124,0.00014794,2]
[421950543,1778365832000,-164.0,0.00015,2]
[421950548,1778365832000,-16582.36030703,0.0001599,2]
[421950540,1778365832000,-167.0,0.00014391,2]
[421950538,1778365832000,-250.0,0.00014,2]
[421950544,1778365832000,-1000.0,0.00015,2]
[421950547,1778365832000,-414.0,0.00015462,2]
[421950546,1778365832000,-150.0,0.00015253,2]
[421950588,1778365832000,-500.0,0.00016079,2]
[421950551,1778365832000,-500.0,0.00016073,2]
[421950552,1778365832000,-500.0,0.00016073,2]
[421950550,1778365832000,-500.0,0.00016073,2]
[421950554,1778365832000,-500.0,0.00016079,2]
[421950555,1778365832000,-500.0,0.00016079,2]
[421950559,1778365832000,-191.24165463,0.00016079,2]
[421950560,1778365832000,-500.0,0.00016079,2]
[421950556,1778365832000,-500.0,0.00016079,2]
[421950558,1778365832000,-500.0,0.00016079,2]
[421950553,1778365832000,-500.0,0.00016073,2]
[421950557,1778365832000,-500.0,0.00016079,2]
[421950561,1778365832000,-500.0,0.00016079,2]
[421950589,1778365832000,-500.0,0.00016079,2]
[421950586,1778365832000,-500.0,0.00016079,2]
[421950593,1778365832000,-500.0,0.00016079,2]
[421950634,1778365832000,-1331.93438627,0.00016079,2]
[421950624,1778365832000,-1331.93438627,0.00016079,2]
[421950625,1778365832000,-1331.93438627,0.00016079,2]
[421950630,1778365832000,-500.0,0.00016079,2]
[421950628,1778365832000,-500.0,0.00016079,2]
[421950629,1778365832000,-1331.93438627,0.00016079,2]
[421950631,1778365832000,-1331.93438627,0.00016079,2]
[421950632,1778365832000,-500.0,0.00016079,2]
[421950636,1778365832000,-1331.93438627,0.00016079,2]
[421950637,1778365832000,-500.0,0.00016079,2]
[421950644,1778365832000,-500.0,0.00016079,2]
[421950638,1778365832000,-500.0,0.00016079,2]
[421950643,1778365832000,-1331.93438627,0.00016079,2]
[421950639,1778365832000,-500.0,0.00016079,2]
[421950641,1778365832000,-500.0,0.00016079,2]
[421950594,1778365832000,-500.0,0.00016079,2]
[421950635,1778365832000,-500.0,0.00016079,2]
[421950640,1778365832000,-1331.93438627,0.00016079,2]
[421950642,1778365832000,-1331.93438627,0.00016079,2]
[421950647,1778365832000,-1331.93438627,0.00016079,2]
[421950646,1778365832000,-500.0,0.00016079,2]
[421950648,1778365832000,-1331.93438627,0.00016079,2]
[421950650,1778365832000,-500.0,0.00016079,2]
[421950649,1778365832000,-1331.93438627,0.00016079,2]
[421950651,1778365832000,-1331.93438627,0.00016079,2]
[421950652,1778365832000,-500.0,0.00016079,2]
[421950653,1778365832000,-1331.93438627,0.00016079,2]
[421950633,1778365832000,-1331.93438627,0.00016079,2]
[421950626,1778365832000,-500.0,0.00016079,2]
[421950645,1778365832000,-1331.93438627,0.00016079,2]
[421950627,1778365832000,-1331.93438627,0.00016079,2]
[421950623,1778365832000,-500.0,0.00016079,2]
[421950595,1778365832000,-500.0,0.00016079,2]
[421950596,1778365832000,-500.0,0.00016079,2]
[421950605,1778365832000,-500.0,0.00016079,2]
[421950598,1778365832000,-500.0,0.00016079,2]
[421950609,1778365832000,-500.0,0.00016079,2]
[421950601,1778365832000,-500.0,0.00016079,2]
[421950600,1778365832000,-500.0,0.00016079,2]
[421950599,1778365832000,-150.00000001,0.00016079,2]
[421950602,1778365832000,-500.0,0.00016079,2]
[421950603,1778365832000,-500.0,0.00016079,2]
[421950604,1778365832000,-500.0,0.00016079,2]
[421950608,1778365832000,-500.0,0.00016079,2]
[421950607,1778365832000,-500.0,0.00016079,2]
[421950614,1778365832000,-500.0,0.00016079,2]
[421950622,1778365832000,-1331.93438627,0.00016079,2]
[421950606,1778365832000,-500.0,0.00016079,2]
[421950615,1778365832000,-500.0,0.00016079,2]
[421950618,1778365832000,-500.0,0.00016079,2]
[421950616,1778365832000,-1331.93438627,0.00016079,2]
[421950621,1778365832000,-500.0,0.00016079,2]
[421950612,1778365832000,-500.0,0.00016079,2]
[421950620,1778365832000,-1331.93438627,0.00016079,2]
[421950617,1778365832000,-1331.93438627,0.00016079,2]
[421950619,1778365832000,-1331.93438627,0.00016079,2]
[421950611,1778365832000,-500.0,0.00016079,2]
[421950610,1778365832000,-500.0,0.00016079,2]
[421950613,1778365832000,-500.0,0.00016079,2]
[421950678,1778365833000,-1331.93438627,0.00016079,2]
[421950675,1778365833000,-1331.93438627,0.00016079,2]
[421950674,1778365833000,-500.0,0.00016079,2]
[421950677,1778365833000,-1331.93438627,0.00016079,2]
[421950676,1778365833000,-500.0,0.00016079,2]
[421950673,1778365833000,-1331.93438627,0.00016079,2]
[421950679,1778365833000,-500.0,0.00016079,2]
[421950688,1778365833000,-500.0,0.00016079,2]
[421950682,1778365833000,-1331.93438627,0.00016079,2]
[421950681,1778365833000,-574.14289333,0.00016079,2]
[421950685,1778365833000,-500.0,0.00016079,2]
[421950684,1778365833000,-1307.71739743,0.00016079,2]
[421950683,1778365833000,-1307.71739743,0.00016079,2]
[421950686,1778365833000,-1307.71739743,0.00016079,2]
[421950670,1778365833000,-1331.93438627,0.00016079,2]
[421950680,1778365833000,-500.0,0.00016079,2]
[421950672,1778365833000,-500.0,0.00016079,2]
[421950656,1778365833000,-500.0,0.00016079,2]
[421950669,1778365833000,-500.0,0.00016079,2]
[421950657,1778365833000,-1331.93438627,0.00016079,2]
[421950658,1778365833000,-1331.93438627,0.00016079,2]
[421950655,1778365833000,-1331.93438627,0.00016079,2]
[421950654,1778365833000,-500.0,0.00016079,2]
[421950660,1778365833000,-500.0,0.00016079,2]
[421950689,1778365833000,-1307.71739743,0.00016079,2]
[421950659,1778365833000,-1331.93438627,0.00016079,2]
[421950662,1778365833000,-500.0,0.00016079,2]
[421950663,1778365833000,-1331.93438627,0.00016079,2]
[421950664,1778365833000,-500.0,0.00016079,2]
[421950666,1778365833000,-500.0,0.00016079,2]
[421950661,1778365833000,-1331.93438627,0.00016079,2]
[421950665,1778365833000,-1331.93438627,0.00016079,2]
[421950667,1778365833000,-1331.93438627,0.00016079,2]
[421950668,1778365833000,-1331.93438627,0.00016079,2]
[421950671,1778365833000,-1331.93438627,0.00016079,2]
[421950687,1778365833000,-1307.71739743,0.00016079,2]
[421950724,1778365833000,-500.0,0.00016973,2]
[421950690,1778365833000,-1307.71739743,0.00016079,2]
[421950709,1778365833000,-1000.0,0.00016621,2]
[421950707,1778365833000,-14679.37060909,0.00016521,2]
[421950714,1778365833000,-8795.63,0.00016922,2]
[421950716,1778365833000,-150.99,0.00016922,2]
[421950721,1778365833000,-999.99,0.00016922,2]
[421950722,1778365833000,-9999.99,0.00016922,2]
[421950725,1778365833000,-500.0,0.00016973,2]
[421950719,1778365833000,-5515.67,0.00016922,2]
[421950715,1778365833000,-9999.99,0.00016922,2]
[421950717,1778365833000,-13871.08,0.00016922,2]
[421950726,1778365833000,-46742.9994391,0.00017115,2]
[421950723,1778365833000,-500.0,0.00016973,2]
[421950720,1778365833000,-2845.7,0.00016922,5]
[421950727,1778365833000,-118417.43378015,0.00017115,2]
[421950691,1778365833000,-500.0,0.00016079,2]
[421950702,1778365833000,-451.00093793,0.0001608,2]
[421950708,1778365833000,-500.0,0.00016621,2]
[421950718,1778365833000,-519.92,0.00016922,2]
[421950706,1778365833000,-1946.9,0.00016232,2]
[421950710,1778365833000,-500.0,0.00016621,2]
[421950692,1778365833000,-1307.71739743,0.00016079,2]
[421950695,1778365833000,-1307.71739743,0.00016079,2]
[421950694,1778365833000,-500.0,0.00016079,2]
[421950700,1778365833000,-500.0,0.0001608,2]
[421950699,1778365833000,-1307.71739743,0.00016079,2]
[421950698,1778365833000,-200.00000001,0.00016079,2]
[421950693,1778365833000,-1307.71739743,0.00016079,2]
[421950696,1778365833000,-500.0,0.00016079,2]
[421950703,1778365833000,-559.37324122,0.0001608,2]
[421950701,1778365833000,-500.0,0.0001608,2]
[421950705,1778365833000,-200806.82850964,0.00016081,2]
[421950704,1778365833000,-500.0,0.0001608,2]
[421950712,1778365833000,-5224.73076169,0.00016795,2]
[421950711,1778365833000,-499.6880583,0.00016621,2]
[421950713,1778365833000,-873.13,0.00016922,2]
[421950697,1778365833000,-1307.71739743,0.00016079,2]
[421950729,1778365837000,-500.0,0.00017168,2]
[421950728,1778365837000,-52854.27263875,0.00017115,2]
[421950730,1778365837000,-500.0,0.00017173,2]
[421950733,1778365837000,-500.0,0.00017173,2]
[421950731,1778365837000,-500.0,0.00017173,2]
[421950734,1778365837000,-500.0,0.00017173,2]
[421950732,1778365837000,-500.0,0.00017173,2]
[421950775,1778365838000,-500.0,0.00022273,2]
[421950765,1778365838000,-160.0,0.00021735,2]
[421950766,1778365838000,-800.0,0.00021849,2]
[421950767,1778365838000,-5000.0,0.00021918,2]
[421950768,1778365838000,-650.01861165,0.00021918,2]
[421950771,1778365838000,-207.0,0.00022,2]
[421950769,1778365838000,-166.66,0.00021944,30]
[421950779,1778365838000,-46742.9994391,0.0002229,2]
[421950770,1778365838000,-163.0,0.00022,2]
[421950774,1778365838000,-35681.60727524,0.00022229,2]
[421950772,1778365838000,-170.0,0.00022,2]
[421950773,1778365838000,-14679.370609,0.00022129,2]
[421950776,1778365838000,-396.70170545,0.00022273,2]
[421950794,1778365838000,-322.01,0.00023048,2]
[421950783,1778365838000,-165272.63827353,0.0002229,2]
[421950785,1778365838000,-166.66,0.00022406,30]
[421950793,1778365838000,-207.0,0.00023,2]
[421950786,1778365838000,-2500.0,0.00022585,2]
[421950789,1778365838000,-360.51809031,0.00022821,2]
[421950791,1778365838000,-166.66,0.00022868,30]
[421950787,1778365838000,-804.11,0.00022678,2]
[421950788,1778365838000,-23580.42687909,0.000228,2]
[421950790,1778365838000,-1000.0,0.00022821,2]
[421950792,1778365838000,-1042.31810368,0.0002299,2]
[421950764,1778365838000,-214.73073128,0.00021735,2]
[421950803,1778365838000,-622.45,0.00024164,2]
[421950781,1778365838000,-5999.06814537,0.0002229,2]
[421950758,1778365838000,-200.0,0.00020673,2]
[421950748,1778365838000,-14679.370609,0.00019325,2]
[421950763,1778365838000,-3237.05291674,0.00021456,2]
[421950739,1778365838000,-200.0,0.00017513,2]
[421950736,1778365838000,-167.50114117,0.00017173,2]
[421950741,1778365838000,-500.0,0.00017521,2]
[421950737,1778365838000,-500.0,0.00017173,2]
[421950740,1778365838000,-1000.0,0.00017521,2]
[421950735,1778365838000,-500.09779013,0.00017173,2]
[421950738,1778365838000,-500.0,0.00017173,2]
[421950742,1778365838000,-500.0,0.00017521,2]
[421950744,1778365838000,-293.32398151,0.00017721,2]
[421950743,1778365838000,-1042.31810374,0.00017628,2]
[421950745,1778365838000,-1000.0,0.00017721,2]